{"text_format":"3","workbook":"xlsx","n_sheets":3,"sheets":["Tidsplan","Dataregistrering","Navneoppslag"],"not_rendered":{"defined_names":5},"read":"whole","date_system":"1900"}

{"sheet":"Tidsplan","index":0,"n_rows":23,"n_cols":9,"rows_kept":23,"merged":[[1,1,2,3]]}
[]
[null,"DAGSPLAN",{"$nulls":4},"For uke ","Vis plan for: "]
[{"$nulls":5},{"$f":"WEEKDAY(Uke,1)","v":3},"2012-07-03","Thomas"]
[null,null,{"$f":"$F$3=COLUMN(A$1)","v":false},{"$f":"$F$3=COLUMN(B$1)","v":false},true,false,false,false,false]
[null,null,{"$f":"COLUMN(A$1)-MATCH(TRUE,$C$4:$I$4,0)+Uke+1","v":"2012-07-02"},"2012-07-03","2012-07-04","2012-07-05","2012-07-06","2012-07-07","2012-07-08"]
[null,"KLOKKESLETT","MANDAG","TIRSDAG","ONSDAG","TORSDAG","FREDAG","LØRDAG","SØNDAG"]
[null,"06:00:00",{"$f":"IFERROR(INDEX(tblData[],MATCH(C$5+$B7&VisNavn,tblData[DATO OG KLOKKESLETT]&tblData[HVEM],0),3),\"\")","v":""},{"$f":"IFERROR(INDEX(tblData[],MATCH(D$5+$B7&VisNavn,tblData[DATO OG KLOKKESLETT]&tblData[HVEM],0),3),\"\")","v":""},{"$f":"IFERROR(INDEX(tblData[],MATCH(E$5+$B7&VisNavn,tblData[DATO OG KLOKKESLETT]&tblData[HVEM],0),3),\"\")","v":""},{"$f":"IFERROR(INDEX(tblData[],MATCH(F$5+$B7&VisNavn,tblData[DATO OG KLOKKESLETT]&tblData[HVEM],0),3),\"\")","v":""},{"$f":"IFERROR(INDEX(tblData[],MATCH(G$5+$B7&VisNavn,tblData[DATO OG KLOKKESLETT]&tblData[HVEM],0),3),\"\")","v":""},{"$f":"IFERROR(INDEX(tblData[],MATCH(H$5+$B7&VisNavn,tblData[DATO OG KLOKKESLETT]&tblData[HVEM],0),3),\"\")","v":""},{"$f":"IFERROR(INDEX(tblData[],MATCH(I$5+$B7&VisNavn,tblData[DATO OG KLOKKESLETT]&tblData[HVEM],0),3),\"\")","v":""}]
[null,"07:00:00",{"$f":"IFERROR(INDEX(tblData[],MATCH(C$5+$B8&VisNavn,tblData[DATO OG KLOKKESLETT]&tblData[HVEM],0),3),\"\")","v":""},{"$f":"IFERROR(INDEX(tblData[],MATCH(D$5+$B8&VisNavn,tblData[DATO OG KLOKKESLETT]&tblData[HVEM],0),3),\"\")","v":""},{"$f":"IFERROR(INDEX(tblData[],MATCH(E$5+$B8&VisNavn,tblData[DATO OG KLOKKESLETT]&tblData[HVEM],0),3),\"\")","v":""},{"$f":"IFERROR(INDEX(tblData[],MATCH(F$5+$B8&VisNavn,tblData[DATO OG KLOKKESLETT]&tblData[HVEM],0),3),\"\")","v":""},{"$f":"IFERROR(INDEX(tblData[],MATCH(G$5+$B8&VisNavn,tblData[DATO OG KLOKKESLETT]&tblData[HVEM],0),3),\"\")","v":""},{"$f":"IFERROR(INDEX(tblData[],MATCH(H$5+$B8&VisNavn,tblData[DATO OG KLOKKESLETT]&tblData[HVEM],0),3),\"\")","v":""},{"$f":"IFERROR(INDEX(tblData[],MATCH(I$5+$B8&VisNavn,tblData[DATO OG KLOKKESLETT]&tblData[HVEM],0),3),\"\")","v":""}]
[null,"08:00:00",{"$f":"IFERROR(INDEX(tblData[],MATCH(C$5+$B9&VisNavn,tblData[DATO OG KLOKKESLETT]&tblData[HVEM],0),3),\"\")","v":""},{"$f":"IFERROR(INDEX(tblData[],MATCH(D$5+$B9&VisNavn,tblData[DATO OG KLOKKESLETT]&tblData[HVEM],0),3),\"\")","v":""},{"$f":"IFERROR(INDEX(tblData[],MATCH(E$5+$B9&VisNavn,tblData[DATO OG KLOKKESLETT]&tblData[HVEM],0),3),\"\")","v":""},{"$f":"IFERROR(INDEX(tblData[],MATCH(F$5+$B9&VisNavn,tblData[DATO OG KLOKKESLETT]&tblData[HVEM],0),3),\"\")","v":""},{"$f":"IFERROR(INDEX(tblData[],MATCH(G$5+$B9&VisNavn,tblData[DATO OG KLOKKESLETT]&tblData[HVEM],0),3),\"\")","v":""},{"$f":"IFERROR(INDEX(tblData[],MATCH(H$5+$B9&VisNavn,tblData[DATO OG KLOKKESLETT]&tblData[HVEM],0),3),\"\")","v":""},{"$f":"IFERROR(INDEX(tblData[],MATCH(I$5+$B9&VisNavn,tblData[DATO OG KLOKKESLETT]&tblData[HVEM],0),3),\"\")","v":""}]
[null,"09:00:00",{"$f":"IFERROR(INDEX(tblData[],MATCH(C$5+$B10&VisNavn,tblData[DATO OG KLOKKESLETT]&tblData[HVEM],0),3),\"\")","v":""},{"$f":"IFERROR(INDEX(tblData[],MATCH(D$5+$B10&VisNavn,tblData[DATO OG KLOKKESLETT]&tblData[HVEM],0),3),\"\")","v":""},{"$f":"IFERROR(INDEX(tblData[],MATCH(E$5+$B10&VisNavn,tblData[DATO OG KLOKKESLETT]&tblData[HVEM],0),3),\"\")","v":""},{"$f":"IFERROR(INDEX(tblData[],MATCH(F$5+$B10&VisNavn,tblData[DATO OG KLOKKESLETT]&tblData[HVEM],0),3),\"\")","v":""},{"$f":"IFERROR(INDEX(tblData[],MATCH(G$5+$B10&VisNavn,tblData[DATO OG KLOKKESLETT]&tblData[HVEM],0),3),\"\")","v":""},{"$f":"IFERROR(INDEX(tblData[],MATCH(H$5+$B10&VisNavn,tblData[DATO OG KLOKKESLETT]&tblData[HVEM],0),3),\"\")","v":""},{"$f":"IFERROR(INDEX(tblData[],MATCH(I$5+$B10&VisNavn,tblData[DATO OG KLOKKESLETT]&tblData[HVEM],0),3),\"\")","v":""}]
[null,"10:00:00",{"$f":"IFERROR(INDEX(tblData[],MATCH(C$5+$B11&VisNavn,tblData[DATO OG KLOKKESLETT]&tblData[HVEM],0),3),\"\")","v":""},{"$f":"IFERROR(INDEX(tblData[],MATCH(D$5+$B11&VisNavn,tblData[DATO OG KLOKKESLETT]&tblData[HVEM],0),3),\"\")","v":""},{"$f":"IFERROR(INDEX(tblData[],MATCH(E$5+$B11&VisNavn,tblData[DATO OG KLOKKESLETT]&tblData[HVEM],0),3),\"\")","v":"Opptog i sentrum"},{"$f":"IFERROR(INDEX(tblData[],MATCH(F$5+$B11&VisNavn,tblData[DATO OG KLOKKESLETT]&tblData[HVEM],0),3),\"\")","v":""},{"$f":"IFERROR(INDEX(tblData[],MATCH(G$5+$B11&VisNavn,tblData[DATO OG KLOKKESLETT]&tblData[HVEM],0),3),\"\")","v":""},{"$f":"IFERROR(INDEX(tblData[],MATCH(H$5+$B11&VisNavn,tblData[DATO OG KLOKKESLETT]&tblData[HVEM],0),3),\"\")","v":""},{"$f":"IFERROR(INDEX(tblData[],MATCH(I$5+$B11&VisNavn,tblData[DATO OG KLOKKESLETT]&tblData[HVEM],0),3),\"\")","v":""}]
[null,"11:00:00",{"$f":"IFERROR(INDEX(tblData[],MATCH(C$5+$B12&VisNavn,tblData[DATO OG KLOKKESLETT]&tblData[HVEM],0),3),\"\")","v":""},{"$f":"IFERROR(INDEX(tblData[],MATCH(D$5+$B12&VisNavn,tblData[DATO OG KLOKKESLETT]&tblData[HVEM],0),3),\"\")","v":""},{"$f":"IFERROR(INDEX(tblData[],MATCH(E$5+$B12&VisNavn,tblData[DATO OG KLOKKESLETT]&tblData[HVEM],0),3),\"\")","v":""},{"$f":"IFERROR(INDEX(tblData[],MATCH(F$5+$B12&VisNavn,tblData[DATO OG KLOKKESLETT]&tblData[HVEM],0),3),\"\")","v":""},{"$f":"IFERROR(INDEX(tblData[],MATCH(G$5+$B12&VisNavn,tblData[DATO OG KLOKKESLETT]&tblData[HVEM],0),3),\"\")","v":"Grillfest med familien"},{"$f":"IFERROR(INDEX(tblData[],MATCH(H$5+$B12&VisNavn,tblData[DATO OG KLOKKESLETT]&tblData[HVEM],0),3),\"\")","v":""},{"$f":"IFERROR(INDEX(tblData[],MATCH(I$5+$B12&VisNavn,tblData[DATO OG KLOKKESLETT]&tblData[HVEM],0),3),\"\")","v":""}]
[null,"12:00:00",{"$f":"IFERROR(INDEX(tblData[],MATCH(C$5+$B13&VisNavn,tblData[DATO OG KLOKKESLETT]&tblData[HVEM],0),3),\"\")","v":""},{"$f":"IFERROR(INDEX(tblData[],MATCH(D$5+$B13&VisNavn,tblData[DATO OG KLOKKESLETT]&tblData[HVEM],0),3),\"\")","v":""},{"$f":"IFERROR(INDEX(tblData[],MATCH(E$5+$B13&VisNavn,tblData[DATO OG KLOKKESLETT]&tblData[HVEM],0),3),\"\")","v":""},{"$f":"IFERROR(INDEX(tblData[],MATCH(F$5+$B13&VisNavn,tblData[DATO OG KLOKKESLETT]&tblData[HVEM],0),3),\"\")","v":""},{"$f":"IFERROR(INDEX(tblData[],MATCH(G$5+$B13&VisNavn,tblData[DATO OG KLOKKESLETT]&tblData[HVEM],0),3),\"\")","v":""},{"$f":"IFERROR(INDEX(tblData[],MATCH(H$5+$B13&VisNavn,tblData[DATO OG KLOKKESLETT]&tblData[HVEM],0),3),\"\")","v":""},{"$f":"IFERROR(INDEX(tblData[],MATCH(I$5+$B13&VisNavn,tblData[DATO OG KLOKKESLETT]&tblData[HVEM],0),3),\"\")","v":""}]
[null,"13:00:00",{"$f":"IFERROR(INDEX(tblData[],MATCH(C$5+$B14&VisNavn,tblData[DATO OG KLOKKESLETT]&tblData[HVEM],0),3),\"\")","v":""},{"$f":"IFERROR(INDEX(tblData[],MATCH(D$5+$B14&VisNavn,tblData[DATO OG KLOKKESLETT]&tblData[HVEM],0),3),\"\")","v":""},{"$f":"IFERROR(INDEX(tblData[],MATCH(E$5+$B14&VisNavn,tblData[DATO OG KLOKKESLETT]&tblData[HVEM],0),3),\"\")","v":""},{"$f":"IFERROR(INDEX(tblData[],MATCH(F$5+$B14&VisNavn,tblData[DATO OG KLOKKESLETT]&tblData[HVEM],0),3),\"\")","v":""},{"$f":"IFERROR(INDEX(tblData[],MATCH(G$5+$B14&VisNavn,tblData[DATO OG KLOKKESLETT]&tblData[HVEM],0),3),\"\")","v":""},{"$f":"IFERROR(INDEX(tblData[],MATCH(H$5+$B14&VisNavn,tblData[DATO OG KLOKKESLETT]&tblData[HVEM],0),3),\"\")","v":""},{"$f":"IFERROR(INDEX(tblData[],MATCH(I$5+$B14&VisNavn,tblData[DATO OG KLOKKESLETT]&tblData[HVEM],0),3),\"\")","v":""}]
[null,"14:00:00",{"$f":"IFERROR(INDEX(tblData[],MATCH(C$5+$B15&VisNavn,tblData[DATO OG KLOKKESLETT]&tblData[HVEM],0),3),\"\")","v":""},{"$f":"IFERROR(INDEX(tblData[],MATCH(D$5+$B15&VisNavn,tblData[DATO OG KLOKKESLETT]&tblData[HVEM],0),3),\"\")","v":""},{"$f":"IFERROR(INDEX(tblData[],MATCH(E$5+$B15&VisNavn,tblData[DATO OG KLOKKESLETT]&tblData[HVEM],0),3),\"\")","v":""},{"$f":"IFERROR(INDEX(tblData[],MATCH(F$5+$B15&VisNavn,tblData[DATO OG KLOKKESLETT]&tblData[HVEM],0),3),\"\")","v":""},{"$f":"IFERROR(INDEX(tblData[],MATCH(G$5+$B15&VisNavn,tblData[DATO OG KLOKKESLETT]&tblData[HVEM],0),3),\"\")","v":""},{"$f":"IFERROR(INDEX(tblData[],MATCH(H$5+$B15&VisNavn,tblData[DATO OG KLOKKESLETT]&tblData[HVEM],0),3),\"\")","v":""},{"$f":"IFERROR(INDEX(tblData[],MATCH(I$5+$B15&VisNavn,tblData[DATO OG KLOKKESLETT]&tblData[HVEM],0),3),\"\")","v":""}]
[null,"15:00:00",{"$f":"IFERROR(INDEX(tblData[],MATCH(C$5+$B16&VisNavn,tblData[DATO OG KLOKKESLETT]&tblData[HVEM],0),3),\"\")","v":""},{"$f":"IFERROR(INDEX(tblData[],MATCH(D$5+$B16&VisNavn,tblData[DATO OG KLOKKESLETT]&tblData[HVEM],0),3),\"\")","v":""},{"$f":"IFERROR(INDEX(tblData[],MATCH(E$5+$B16&VisNavn,tblData[DATO OG KLOKKESLETT]&tblData[HVEM],0),3),\"\")","v":""},{"$f":"IFERROR(INDEX(tblData[],MATCH(F$5+$B16&VisNavn,tblData[DATO OG KLOKKESLETT]&tblData[HVEM],0),3),\"\")","v":""},{"$f":"IFERROR(INDEX(tblData[],MATCH(G$5+$B16&VisNavn,tblData[DATO OG KLOKKESLETT]&tblData[HVEM],0),3),\"\")","v":""},{"$f":"IFERROR(INDEX(tblData[],MATCH(H$5+$B16&VisNavn,tblData[DATO OG KLOKKESLETT]&tblData[HVEM],0),3),\"\")","v":""},{"$f":"IFERROR(INDEX(tblData[],MATCH(I$5+$B16&VisNavn,tblData[DATO OG KLOKKESLETT]&tblData[HVEM],0),3),\"\")","v":""}]
[null,"16:00:00",{"$f":"IFERROR(INDEX(tblData[],MATCH(C$5+$B17&VisNavn,tblData[DATO OG KLOKKESLETT]&tblData[HVEM],0),3),\"\")","v":""},{"$f":"IFERROR(INDEX(tblData[],MATCH(D$5+$B17&VisNavn,tblData[DATO OG KLOKKESLETT]&tblData[HVEM],0),3),\"\")","v":"Dra på hytta"},{"$f":"IFERROR(INDEX(tblData[],MATCH(E$5+$B17&VisNavn,tblData[DATO OG KLOKKESLETT]&tblData[HVEM],0),3),\"\")","v":""},{"$f":"IFERROR(INDEX(tblData[],MATCH(F$5+$B17&VisNavn,tblData[DATO OG KLOKKESLETT]&tblData[HVEM],0),3),\"\")","v":""},{"$f":"IFERROR(INDEX(tblData[],MATCH(G$5+$B17&VisNavn,tblData[DATO OG KLOKKESLETT]&tblData[HVEM],0),3),\"\")","v":""},{"$f":"IFERROR(INDEX(tblData[],MATCH(H$5+$B17&VisNavn,tblData[DATO OG KLOKKESLETT]&tblData[HVEM],0),3),\"\")","v":""},{"$f":"IFERROR(INDEX(tblData[],MATCH(I$5+$B17&VisNavn,tblData[DATO OG KLOKKESLETT]&tblData[HVEM],0),3),\"\")","v":""}]
[null,"17:00:00",{"$f":"IFERROR(INDEX(tblData[],MATCH(C$5+$B18&VisNavn,tblData[DATO OG KLOKKESLETT]&tblData[HVEM],0),3),\"\")","v":""},{"$f":"IFERROR(INDEX(tblData[],MATCH(D$5+$B18&VisNavn,tblData[DATO OG KLOKKESLETT]&tblData[HVEM],0),3),\"\")","v":""},{"$f":"IFERROR(INDEX(tblData[],MATCH(E$5+$B18&VisNavn,tblData[DATO OG KLOKKESLETT]&tblData[HVEM],0),3),\"\")","v":""},{"$f":"IFERROR(INDEX(tblData[],MATCH(F$5+$B18&VisNavn,tblData[DATO OG KLOKKESLETT]&tblData[HVEM],0),3),\"\")","v":""},{"$f":"IFERROR(INDEX(tblData[],MATCH(G$5+$B18&VisNavn,tblData[DATO OG KLOKKESLETT]&tblData[HVEM],0),3),\"\")","v":""},{"$f":"IFERROR(INDEX(tblData[],MATCH(H$5+$B18&VisNavn,tblData[DATO OG KLOKKESLETT]&tblData[HVEM],0),3),\"\")","v":""},{"$f":"IFERROR(INDEX(tblData[],MATCH(I$5+$B18&VisNavn,tblData[DATO OG KLOKKESLETT]&tblData[HVEM],0),3),\"\")","v":"Komme hjem"}]
[null,"18:00:00",{"$f":"IFERROR(INDEX(tblData[],MATCH(C$5+$B19&VisNavn,tblData[DATO OG KLOKKESLETT]&tblData[HVEM],0),3),\"\")","v":"Ta medisin"},{"$f":"IFERROR(INDEX(tblData[],MATCH(D$5+$B19&VisNavn,tblData[DATO OG KLOKKESLETT]&tblData[HVEM],0),3),\"\")","v":""},{"$f":"IFERROR(INDEX(tblData[],MATCH(E$5+$B19&VisNavn,tblData[DATO OG KLOKKESLETT]&tblData[HVEM],0),3),\"\")","v":""},{"$f":"IFERROR(INDEX(tblData[],MATCH(F$5+$B19&VisNavn,tblData[DATO OG KLOKKESLETT]&tblData[HVEM],0),3),\"\")","v":""},{"$f":"IFERROR(INDEX(tblData[],MATCH(G$5+$B19&VisNavn,tblData[DATO OG KLOKKESLETT]&tblData[HVEM],0),3),\"\")","v":""},{"$f":"IFERROR(INDEX(tblData[],MATCH(H$5+$B19&VisNavn,tblData[DATO OG KLOKKESLETT]&tblData[HVEM],0),3),\"\")","v":""},{"$f":"IFERROR(INDEX(tblData[],MATCH(I$5+$B19&VisNavn,tblData[DATO OG KLOKKESLETT]&tblData[HVEM],0),3),\"\")","v":""}]
[null,"19:00:00",{"$f":"IFERROR(INDEX(tblData[],MATCH(C$5+$B20&VisNavn,tblData[DATO OG KLOKKESLETT]&tblData[HVEM],0),3),\"\")","v":""},{"$f":"IFERROR(INDEX(tblData[],MATCH(D$5+$B20&VisNavn,tblData[DATO OG KLOKKESLETT]&tblData[HVEM],0),3),\"\")","v":""},{"$f":"IFERROR(INDEX(tblData[],MATCH(E$5+$B20&VisNavn,tblData[DATO OG KLOKKESLETT]&tblData[HVEM],0),3),\"\")","v":""},{"$f":"IFERROR(INDEX(tblData[],MATCH(F$5+$B20&VisNavn,tblData[DATO OG KLOKKESLETT]&tblData[HVEM],0),3),\"\")","v":""},{"$f":"IFERROR(INDEX(tblData[],MATCH(G$5+$B20&VisNavn,tblData[DATO OG KLOKKESLETT]&tblData[HVEM],0),3),\"\")","v":""},{"$f":"IFERROR(INDEX(tblData[],MATCH(H$5+$B20&VisNavn,tblData[DATO OG KLOKKESLETT]&tblData[HVEM],0),3),\"\")","v":""},{"$f":"IFERROR(INDEX(tblData[],MATCH(I$5+$B20&VisNavn,tblData[DATO OG KLOKKESLETT]&tblData[HVEM],0),3),\"\")","v":""}]
[null,"20:00:00",{"$f":"IFERROR(INDEX(tblData[],MATCH(C$5+$B21&VisNavn,tblData[DATO OG KLOKKESLETT]&tblData[HVEM],0),3),\"\")","v":"Film med familien"},{"$f":"IFERROR(INDEX(tblData[],MATCH(D$5+$B21&VisNavn,tblData[DATO OG KLOKKESLETT]&tblData[HVEM],0),3),\"\")","v":""},{"$f":"IFERROR(INDEX(tblData[],MATCH(E$5+$B21&VisNavn,tblData[DATO OG KLOKKESLETT]&tblData[HVEM],0),3),\"\")","v":""},{"$f":"IFERROR(INDEX(tblData[],MATCH(F$5+$B21&VisNavn,tblData[DATO OG KLOKKESLETT]&tblData[HVEM],0),3),\"\")","v":"Fyrverkeri"},{"$f":"IFERROR(INDEX(tblData[],MATCH(G$5+$B21&VisNavn,tblData[DATO OG KLOKKESLETT]&tblData[HVEM],0),3),\"\")","v":""},{"$f":"IFERROR(INDEX(tblData[],MATCH(H$5+$B21&VisNavn,tblData[DATO OG KLOKKESLETT]&tblData[HVEM],0),3),\"\")","v":""},{"$f":"IFERROR(INDEX(tblData[],MATCH(I$5+$B21&VisNavn,tblData[DATO OG KLOKKESLETT]&tblData[HVEM],0),3),\"\")","v":""}]
[null,"21:00:00",{"$f":"IFERROR(INDEX(tblData[],MATCH(C$5+$B22&VisNavn,tblData[DATO OG KLOKKESLETT]&tblData[HVEM],0),3),\"\")","v":""},{"$f":"IFERROR(INDEX(tblData[],MATCH(D$5+$B22&VisNavn,tblData[DATO OG KLOKKESLETT]&tblData[HVEM],0),3),\"\")","v":""},{"$f":"IFERROR(INDEX(tblData[],MATCH(E$5+$B22&VisNavn,tblData[DATO OG KLOKKESLETT]&tblData[HVEM],0),3),\"\")","v":""},{"$f":"IFERROR(INDEX(tblData[],MATCH(F$5+$B22&VisNavn,tblData[DATO OG KLOKKESLETT]&tblData[HVEM],0),3),\"\")","v":""},{"$f":"IFERROR(INDEX(tblData[],MATCH(G$5+$B22&VisNavn,tblData[DATO OG KLOKKESLETT]&tblData[HVEM],0),3),\"\")","v":""},{"$f":"IFERROR(INDEX(tblData[],MATCH(H$5+$B22&VisNavn,tblData[DATO OG KLOKKESLETT]&tblData[HVEM],0),3),\"\")","v":""},{"$f":"IFERROR(INDEX(tblData[],MATCH(I$5+$B22&VisNavn,tblData[DATO OG KLOKKESLETT]&tblData[HVEM],0),3),\"\")","v":""}]
[null,"22:00:00",{"$f":"IFERROR(INDEX(tblData[],MATCH(C$5+$B23&VisNavn,tblData[DATO OG KLOKKESLETT]&tblData[HVEM],0),3),\"\")","v":""},{"$f":"IFERROR(INDEX(tblData[],MATCH(D$5+$B23&VisNavn,tblData[DATO OG KLOKKESLETT]&tblData[HVEM],0),3),\"\")","v":""},{"$f":"IFERROR(INDEX(tblData[],MATCH(E$5+$B23&VisNavn,tblData[DATO OG KLOKKESLETT]&tblData[HVEM],0),3),\"\")","v":""},{"$f":"IFERROR(INDEX(tblData[],MATCH(F$5+$B23&VisNavn,tblData[DATO OG KLOKKESLETT]&tblData[HVEM],0),3),\"\")","v":""},{"$f":"IFERROR(INDEX(tblData[],MATCH(G$5+$B23&VisNavn,tblData[DATO OG KLOKKESLETT]&tblData[HVEM],0),3),\"\")","v":""},{"$f":"IFERROR(INDEX(tblData[],MATCH(H$5+$B23&VisNavn,tblData[DATO OG KLOKKESLETT]&tblData[HVEM],0),3),\"\")","v":""},{"$f":"IFERROR(INDEX(tblData[],MATCH(I$5+$B23&VisNavn,tblData[DATO OG KLOKKESLETT]&tblData[HVEM],0),3),\"\")","v":""}]

{"sheet":"Dataregistrering","index":1,"n_rows":14,"n_cols":7,"rows_kept":14}
[null,"DATAREGISTRERING"]
[]
[null,"DATO OG KLOKKESLETT","HVEM","OPPGAVE"]
[null,"2012-07-02T08:00:00","Anna","Legeavtale"]
[null,"2012-07-02T18:00:00","Thomas","Ta medisin"]
[null,"2012-07-02T18:30:00","Thomas","Middag med Pia"]
[null,"2012-07-02T20:00:00","Thomas","Film med familien"]
[null,"2012-07-03T16:00:00","Thomas","Dra på hytta"]
[null,"2012-07-04T10:00:00","Thomas","Opptog i sentrum",null,null,"s"]
[null,"2012-07-05T20:00:00","Thomas","Fyrverkeri"]
[null,"2012-07-06T11:00:00","Thomas","Grillfest med familien"]
[null,"2012-07-07","Thomas","Fellesutflukt velforeningen"]
[null,"2012-07-08T17:00:00","Thomas","Komme hjem"]
[null,"2012-07-02T10:00:00","Anna","Pianotimer"]

{"sheet":"Navneoppslag","index":2,"n_rows":132,"n_cols":2,"rows_kept":132,"hidden":true,"merged":[[0,0,0,1]]}
["Dette arket fyller ut rullegardinlisten med navn på Tidsplan-arket i celle H3. Eventuelle endringer som gjøres på dette arket, kan føre til feil."]
["UNIKT NAVN","RADNUMMER"]
[{"$f":"IFERROR(INDEX(HvemFelt,MATCH(0,COUNTIF($A$2:A2,HvemFelt),0)),\"\")","v":"Anna"},{"$f":"IF(A3=\"\",\"\",ROW())","v":3}]
[{"$f":"IFERROR(INDEX(HvemFelt,MATCH(0,COUNTIF($A$2:A3,HvemFelt),0)),\"\")","v":"Thomas"},{"$f":"IF(A4=\"\",\"\",ROW())","v":4}]
[{"$f":"IFERROR(INDEX(HvemFelt,MATCH(0,COUNTIF($A$2:A4,HvemFelt),0)),\"\")","v":""},""]
[{"$f":"IFERROR(INDEX(HvemFelt,MATCH(0,COUNTIF($A$2:A5,HvemFelt),0)),\"\")","v":""},""]
[{"$f":"IFERROR(INDEX(HvemFelt,MATCH(0,COUNTIF($A$2:A6,HvemFelt),0)),\"\")","v":""},""]
[{"$f":"IFERROR(INDEX(HvemFelt,MATCH(0,COUNTIF($A$2:A7,HvemFelt),0)),\"\")","v":""},""]
[{"$f":"IFERROR(INDEX(HvemFelt,MATCH(0,COUNTIF($A$2:A8,HvemFelt),0)),\"\")","v":""},""]
[{"$f":"IFERROR(INDEX(HvemFelt,MATCH(0,COUNTIF($A$2:A9,HvemFelt),0)),\"\")","v":""},""]
[{"$f":"IFERROR(INDEX(HvemFelt,MATCH(0,COUNTIF($A$2:A10,HvemFelt),0)),\"\")","v":""},""]
[{"$f":"IFERROR(INDEX(HvemFelt,MATCH(0,COUNTIF($A$2:A11,HvemFelt),0)),\"\")","v":""},""]
[{"$f":"IFERROR(INDEX(HvemFelt,MATCH(0,COUNTIF($A$2:A12,HvemFelt),0)),\"\")","v":""},""]
[{"$f":"IFERROR(INDEX(HvemFelt,MATCH(0,COUNTIF($A$2:A13,HvemFelt),0)),\"\")","v":""},""]
[{"$f":"IFERROR(INDEX(HvemFelt,MATCH(0,COUNTIF($A$2:A14,HvemFelt),0)),\"\")","v":""},""]
[{"$f":"IFERROR(INDEX(HvemFelt,MATCH(0,COUNTIF($A$2:A15,HvemFelt),0)),\"\")","v":""},""]
[{"$f":"IFERROR(INDEX(HvemFelt,MATCH(0,COUNTIF($A$2:A16,HvemFelt),0)),\"\")","v":""},""]
[{"$f":"IFERROR(INDEX(HvemFelt,MATCH(0,COUNTIF($A$2:A17,HvemFelt),0)),\"\")","v":""},""]
[{"$f":"IFERROR(INDEX(HvemFelt,MATCH(0,COUNTIF($A$2:A18,HvemFelt),0)),\"\")","v":""},""]
[{"$f":"IFERROR(INDEX(HvemFelt,MATCH(0,COUNTIF($A$2:A19,HvemFelt),0)),\"\")","v":""},""]
[{"$f":"IFERROR(INDEX(HvemFelt,MATCH(0,COUNTIF($A$2:A20,HvemFelt),0)),\"\")","v":""},""]
[{"$f":"IFERROR(INDEX(HvemFelt,MATCH(0,COUNTIF($A$2:A21,HvemFelt),0)),\"\")","v":""},""]
[{"$f":"IFERROR(INDEX(HvemFelt,MATCH(0,COUNTIF($A$2:A22,HvemFelt),0)),\"\")","v":""},""]
[{"$f":"IFERROR(INDEX(HvemFelt,MATCH(0,COUNTIF($A$2:A23,HvemFelt),0)),\"\")","v":""},""]
[{"$f":"IFERROR(INDEX(HvemFelt,MATCH(0,COUNTIF($A$2:A24,HvemFelt),0)),\"\")","v":""},""]
[{"$f":"IFERROR(INDEX(HvemFelt,MATCH(0,COUNTIF($A$2:A25,HvemFelt),0)),\"\")","v":""},""]
[{"$f":"IFERROR(INDEX(HvemFelt,MATCH(0,COUNTIF($A$2:A26,HvemFelt),0)),\"\")","v":""},""]
[{"$f":"IFERROR(INDEX(HvemFelt,MATCH(0,COUNTIF($A$2:A27,HvemFelt),0)),\"\")","v":""},""]
[{"$f":"IFERROR(INDEX(HvemFelt,MATCH(0,COUNTIF($A$2:A28,HvemFelt),0)),\"\")","v":""},""]
[{"$f":"IFERROR(INDEX(HvemFelt,MATCH(0,COUNTIF($A$2:A29,HvemFelt),0)),\"\")","v":""},""]
[{"$f":"IFERROR(INDEX(HvemFelt,MATCH(0,COUNTIF($A$2:A30,HvemFelt),0)),\"\")","v":""},""]
[{"$f":"IFERROR(INDEX(HvemFelt,MATCH(0,COUNTIF($A$2:A31,HvemFelt),0)),\"\")","v":""},""]
[{"$f":"IFERROR(INDEX(HvemFelt,MATCH(0,COUNTIF($A$2:A32,HvemFelt),0)),\"\")","v":""},""]
[{"$f":"IFERROR(INDEX(HvemFelt,MATCH(0,COUNTIF($A$2:A33,HvemFelt),0)),\"\")","v":""},""]
[{"$f":"IFERROR(INDEX(HvemFelt,MATCH(0,COUNTIF($A$2:A34,HvemFelt),0)),\"\")","v":""},""]
[{"$f":"IFERROR(INDEX(HvemFelt,MATCH(0,COUNTIF($A$2:A35,HvemFelt),0)),\"\")","v":""},""]
[{"$f":"IFERROR(INDEX(HvemFelt,MATCH(0,COUNTIF($A$2:A36,HvemFelt),0)),\"\")","v":""},""]
[{"$f":"IFERROR(INDEX(HvemFelt,MATCH(0,COUNTIF($A$2:A37,HvemFelt),0)),\"\")","v":""},""]
[{"$f":"IFERROR(INDEX(HvemFelt,MATCH(0,COUNTIF($A$2:A38,HvemFelt),0)),\"\")","v":""},""]
[{"$f":"IFERROR(INDEX(HvemFelt,MATCH(0,COUNTIF($A$2:A39,HvemFelt),0)),\"\")","v":""},""]
[{"$f":"IFERROR(INDEX(HvemFelt,MATCH(0,COUNTIF($A$2:A40,HvemFelt),0)),\"\")","v":""},""]
[{"$f":"IFERROR(INDEX(HvemFelt,MATCH(0,COUNTIF($A$2:A41,HvemFelt),0)),\"\")","v":""},""]
[{"$f":"IFERROR(INDEX(HvemFelt,MATCH(0,COUNTIF($A$2:A42,HvemFelt),0)),\"\")","v":""},""]
[{"$f":"IFERROR(INDEX(HvemFelt,MATCH(0,COUNTIF($A$2:A43,HvemFelt),0)),\"\")","v":""},""]
[{"$f":"IFERROR(INDEX(HvemFelt,MATCH(0,COUNTIF($A$2:A44,HvemFelt),0)),\"\")","v":""},""]
[{"$f":"IFERROR(INDEX(HvemFelt,MATCH(0,COUNTIF($A$2:A45,HvemFelt),0)),\"\")","v":""},""]
[{"$f":"IFERROR(INDEX(HvemFelt,MATCH(0,COUNTIF($A$2:A46,HvemFelt),0)),\"\")","v":""},""]
[{"$f":"IFERROR(INDEX(HvemFelt,MATCH(0,COUNTIF($A$2:A47,HvemFelt),0)),\"\")","v":""},""]
[{"$f":"IFERROR(INDEX(HvemFelt,MATCH(0,COUNTIF($A$2:A48,HvemFelt),0)),\"\")","v":""},""]
[{"$f":"IFERROR(INDEX(HvemFelt,MATCH(0,COUNTIF($A$2:A49,HvemFelt),0)),\"\")","v":""},""]
[{"$f":"IFERROR(INDEX(HvemFelt,MATCH(0,COUNTIF($A$2:A50,HvemFelt),0)),\"\")","v":""},""]
[{"$f":"IFERROR(INDEX(HvemFelt,MATCH(0,COUNTIF($A$2:A51,HvemFelt),0)),\"\")","v":""},""]
[{"$f":"IFERROR(INDEX(HvemFelt,MATCH(0,COUNTIF($A$2:A52,HvemFelt),0)),\"\")","v":""},""]
[{"$f":"IFERROR(INDEX(HvemFelt,MATCH(0,COUNTIF($A$2:A53,HvemFelt),0)),\"\")","v":""},""]
[{"$f":"IFERROR(INDEX(HvemFelt,MATCH(0,COUNTIF($A$2:A54,HvemFelt),0)),\"\")","v":""},""]
[{"$f":"IFERROR(INDEX(HvemFelt,MATCH(0,COUNTIF($A$2:A55,HvemFelt),0)),\"\")","v":""},""]
[{"$f":"IFERROR(INDEX(HvemFelt,MATCH(0,COUNTIF($A$2:A56,HvemFelt),0)),\"\")","v":""},""]
[{"$f":"IFERROR(INDEX(HvemFelt,MATCH(0,COUNTIF($A$2:A57,HvemFelt),0)),\"\")","v":""},""]
[{"$f":"IFERROR(INDEX(HvemFelt,MATCH(0,COUNTIF($A$2:A58,HvemFelt),0)),\"\")","v":""},""]
[{"$f":"IFERROR(INDEX(HvemFelt,MATCH(0,COUNTIF($A$2:A59,HvemFelt),0)),\"\")","v":""},""]
[{"$f":"IFERROR(INDEX(HvemFelt,MATCH(0,COUNTIF($A$2:A60,HvemFelt),0)),\"\")","v":""},""]
[{"$f":"IFERROR(INDEX(HvemFelt,MATCH(0,COUNTIF($A$2:A61,HvemFelt),0)),\"\")","v":""},""]
[{"$f":"IFERROR(INDEX(HvemFelt,MATCH(0,COUNTIF($A$2:A62,HvemFelt),0)),\"\")","v":""},""]
[{"$f":"IFERROR(INDEX(HvemFelt,MATCH(0,COUNTIF($A$2:A63,HvemFelt),0)),\"\")","v":""},""]
[{"$f":"IFERROR(INDEX(HvemFelt,MATCH(0,COUNTIF($A$2:A64,HvemFelt),0)),\"\")","v":""},""]
[{"$f":"IFERROR(INDEX(HvemFelt,MATCH(0,COUNTIF($A$2:A65,HvemFelt),0)),\"\")","v":""},""]
[{"$f":"IFERROR(INDEX(HvemFelt,MATCH(0,COUNTIF($A$2:A66,HvemFelt),0)),\"\")","v":""},""]
[{"$f":"IFERROR(INDEX(HvemFelt,MATCH(0,COUNTIF($A$2:A67,HvemFelt),0)),\"\")","v":""},{"$f":"IF(A68=\"\",\"\",ROW())","v":""}]
[{"$f":"IFERROR(INDEX(HvemFelt,MATCH(0,COUNTIF($A$2:A68,HvemFelt),0)),\"\")","v":""},""]
[{"$f":"IFERROR(INDEX(HvemFelt,MATCH(0,COUNTIF($A$2:A69,HvemFelt),0)),\"\")","v":""},""]
[{"$f":"IFERROR(INDEX(HvemFelt,MATCH(0,COUNTIF($A$2:A70,HvemFelt),0)),\"\")","v":""},""]
[{"$f":"IFERROR(INDEX(HvemFelt,MATCH(0,COUNTIF($A$2:A71,HvemFelt),0)),\"\")","v":""},""]
[{"$f":"IFERROR(INDEX(HvemFelt,MATCH(0,COUNTIF($A$2:A72,HvemFelt),0)),\"\")","v":""},""]
[{"$f":"IFERROR(INDEX(HvemFelt,MATCH(0,COUNTIF($A$2:A73,HvemFelt),0)),\"\")","v":""},""]
[{"$f":"IFERROR(INDEX(HvemFelt,MATCH(0,COUNTIF($A$2:A74,HvemFelt),0)),\"\")","v":""},""]
[{"$f":"IFERROR(INDEX(HvemFelt,MATCH(0,COUNTIF($A$2:A75,HvemFelt),0)),\"\")","v":""},""]
[{"$f":"IFERROR(INDEX(HvemFelt,MATCH(0,COUNTIF($A$2:A76,HvemFelt),0)),\"\")","v":""},""]
[{"$f":"IFERROR(INDEX(HvemFelt,MATCH(0,COUNTIF($A$2:A77,HvemFelt),0)),\"\")","v":""},""]
[{"$f":"IFERROR(INDEX(HvemFelt,MATCH(0,COUNTIF($A$2:A78,HvemFelt),0)),\"\")","v":""},""]
[{"$f":"IFERROR(INDEX(HvemFelt,MATCH(0,COUNTIF($A$2:A79,HvemFelt),0)),\"\")","v":""},""]
[{"$f":"IFERROR(INDEX(HvemFelt,MATCH(0,COUNTIF($A$2:A80,HvemFelt),0)),\"\")","v":""},""]
[{"$f":"IFERROR(INDEX(HvemFelt,MATCH(0,COUNTIF($A$2:A81,HvemFelt),0)),\"\")","v":""},""]
[{"$f":"IFERROR(INDEX(HvemFelt,MATCH(0,COUNTIF($A$2:A82,HvemFelt),0)),\"\")","v":""},""]
[{"$f":"IFERROR(INDEX(HvemFelt,MATCH(0,COUNTIF($A$2:A83,HvemFelt),0)),\"\")","v":""},""]
[{"$f":"IFERROR(INDEX(HvemFelt,MATCH(0,COUNTIF($A$2:A84,HvemFelt),0)),\"\")","v":""},""]
[{"$f":"IFERROR(INDEX(HvemFelt,MATCH(0,COUNTIF($A$2:A85,HvemFelt),0)),\"\")","v":""},""]
[{"$f":"IFERROR(INDEX(HvemFelt,MATCH(0,COUNTIF($A$2:A86,HvemFelt),0)),\"\")","v":""},""]
[{"$f":"IFERROR(INDEX(HvemFelt,MATCH(0,COUNTIF($A$2:A87,HvemFelt),0)),\"\")","v":""},""]
[{"$f":"IFERROR(INDEX(HvemFelt,MATCH(0,COUNTIF($A$2:A88,HvemFelt),0)),\"\")","v":""},""]
[{"$f":"IFERROR(INDEX(HvemFelt,MATCH(0,COUNTIF($A$2:A89,HvemFelt),0)),\"\")","v":""},""]
[{"$f":"IFERROR(INDEX(HvemFelt,MATCH(0,COUNTIF($A$2:A90,HvemFelt),0)),\"\")","v":""},""]
[{"$f":"IFERROR(INDEX(HvemFelt,MATCH(0,COUNTIF($A$2:A91,HvemFelt),0)),\"\")","v":""},""]
[{"$f":"IFERROR(INDEX(HvemFelt,MATCH(0,COUNTIF($A$2:A92,HvemFelt),0)),\"\")","v":""},""]
[{"$f":"IFERROR(INDEX(HvemFelt,MATCH(0,COUNTIF($A$2:A93,HvemFelt),0)),\"\")","v":""},""]
[{"$f":"IFERROR(INDEX(HvemFelt,MATCH(0,COUNTIF($A$2:A94,HvemFelt),0)),\"\")","v":""},""]
[{"$f":"IFERROR(INDEX(HvemFelt,MATCH(0,COUNTIF($A$2:A95,HvemFelt),0)),\"\")","v":""},""]
[{"$f":"IFERROR(INDEX(HvemFelt,MATCH(0,COUNTIF($A$2:A96,HvemFelt),0)),\"\")","v":""},""]
[{"$f":"IFERROR(INDEX(HvemFelt,MATCH(0,COUNTIF($A$2:A97,HvemFelt),0)),\"\")","v":""},""]
[{"$f":"IFERROR(INDEX(HvemFelt,MATCH(0,COUNTIF($A$2:A98,HvemFelt),0)),\"\")","v":""},""]
[{"$f":"IFERROR(INDEX(HvemFelt,MATCH(0,COUNTIF($A$2:A99,HvemFelt),0)),\"\")","v":""},""]
[{"$f":"IFERROR(INDEX(HvemFelt,MATCH(0,COUNTIF($A$2:A100,HvemFelt),0)),\"\")","v":""},""]
[{"$f":"IFERROR(INDEX(HvemFelt,MATCH(0,COUNTIF($A$2:A101,HvemFelt),0)),\"\")","v":""},""]
[{"$f":"IFERROR(INDEX(HvemFelt,MATCH(0,COUNTIF($A$2:A102,HvemFelt),0)),\"\")","v":""},""]
[{"$f":"IFERROR(INDEX(HvemFelt,MATCH(0,COUNTIF($A$2:A103,HvemFelt),0)),\"\")","v":""},""]
[{"$f":"IFERROR(INDEX(HvemFelt,MATCH(0,COUNTIF($A$2:A104,HvemFelt),0)),\"\")","v":""},""]
[{"$f":"IFERROR(INDEX(HvemFelt,MATCH(0,COUNTIF($A$2:A105,HvemFelt),0)),\"\")","v":""},""]
[{"$f":"IFERROR(INDEX(HvemFelt,MATCH(0,COUNTIF($A$2:A106,HvemFelt),0)),\"\")","v":""},""]
[{"$f":"IFERROR(INDEX(HvemFelt,MATCH(0,COUNTIF($A$2:A107,HvemFelt),0)),\"\")","v":""},""]
[{"$f":"IFERROR(INDEX(HvemFelt,MATCH(0,COUNTIF($A$2:A108,HvemFelt),0)),\"\")","v":""},""]
[{"$f":"IFERROR(INDEX(HvemFelt,MATCH(0,COUNTIF($A$2:A109,HvemFelt),0)),\"\")","v":""},""]
[{"$f":"IFERROR(INDEX(HvemFelt,MATCH(0,COUNTIF($A$2:A110,HvemFelt),0)),\"\")","v":""},""]
[{"$f":"IFERROR(INDEX(HvemFelt,MATCH(0,COUNTIF($A$2:A111,HvemFelt),0)),\"\")","v":""},""]
[{"$f":"IFERROR(INDEX(HvemFelt,MATCH(0,COUNTIF($A$2:A112,HvemFelt),0)),\"\")","v":""},""]
[{"$f":"IFERROR(INDEX(HvemFelt,MATCH(0,COUNTIF($A$2:A113,HvemFelt),0)),\"\")","v":""},""]
[{"$f":"IFERROR(INDEX(HvemFelt,MATCH(0,COUNTIF($A$2:A114,HvemFelt),0)),\"\")","v":""},""]
[{"$f":"IFERROR(INDEX(HvemFelt,MATCH(0,COUNTIF($A$2:A115,HvemFelt),0)),\"\")","v":""},""]
[{"$f":"IFERROR(INDEX(HvemFelt,MATCH(0,COUNTIF($A$2:A116,HvemFelt),0)),\"\")","v":""},""]
[{"$f":"IFERROR(INDEX(HvemFelt,MATCH(0,COUNTIF($A$2:A117,HvemFelt),0)),\"\")","v":""},""]
[{"$f":"IFERROR(INDEX(HvemFelt,MATCH(0,COUNTIF($A$2:A118,HvemFelt),0)),\"\")","v":""},""]
[{"$f":"IFERROR(INDEX(HvemFelt,MATCH(0,COUNTIF($A$2:A119,HvemFelt),0)),\"\")","v":""},""]
[{"$f":"IFERROR(INDEX(HvemFelt,MATCH(0,COUNTIF($A$2:A120,HvemFelt),0)),\"\")","v":""},""]
[{"$f":"IFERROR(INDEX(HvemFelt,MATCH(0,COUNTIF($A$2:A121,HvemFelt),0)),\"\")","v":""},""]
[{"$f":"IFERROR(INDEX(HvemFelt,MATCH(0,COUNTIF($A$2:A122,HvemFelt),0)),\"\")","v":""},""]
[{"$f":"IFERROR(INDEX(HvemFelt,MATCH(0,COUNTIF($A$2:A123,HvemFelt),0)),\"\")","v":""},""]
[{"$f":"IFERROR(INDEX(HvemFelt,MATCH(0,COUNTIF($A$2:A124,HvemFelt),0)),\"\")","v":""},""]
[{"$f":"IFERROR(INDEX(HvemFelt,MATCH(0,COUNTIF($A$2:A125,HvemFelt),0)),\"\")","v":""},""]
[{"$f":"IFERROR(INDEX(HvemFelt,MATCH(0,COUNTIF($A$2:A126,HvemFelt),0)),\"\")","v":""},""]
[{"$f":"IFERROR(INDEX(HvemFelt,MATCH(0,COUNTIF($A$2:A127,HvemFelt),0)),\"\")","v":""},""]
[{"$f":"IFERROR(INDEX(HvemFelt,MATCH(0,COUNTIF($A$2:A128,HvemFelt),0)),\"\")","v":""},""]
[{"$f":"IFERROR(INDEX(HvemFelt,MATCH(0,COUNTIF($A$2:A129,HvemFelt),0)),\"\")","v":""},""]
[{"$f":"IFERROR(INDEX(HvemFelt,MATCH(0,COUNTIF($A$2:A130,HvemFelt),0)),\"\")","v":""},""]
[{"$f":"IFERROR(INDEX(HvemFelt,MATCH(0,COUNTIF($A$2:A131,HvemFelt),0)),\"\")","v":""},{"$f":"IF(A132=\"\",\"\",ROW())","v":""}]